bitfinex/quotes_BTCUSD_20241002
["timestamp","ask_amount","ask_price","bid_price","bid_amount"]
[1727864887225,0.000819,61572.0,61571.0,0.85728596]
[1727864888545,0.000819,61572.0,61571.0,0.95634711]
[1727864889895,0.000819,61572.0,61571.0,0.85728596]
[1727864890118,0.000819,61572.0,61571.0,0.62927327]
[1727864890332,0.000819,61572.0,61571.0,0.75074145]
[1727864890557,0.000819,61572.0,61571.0,0.62927327]
[1727864890974,0.000819,61572.0,61571.0,0.64653671]
[1727864891687,0.000819,61572.0,61571.0,0.69844337]
[1727864892400,0.000819,61572.0,61571.0,0.86313782]
[1727864892931,0.000819,61572.0,61571.0,0.88600349]
[1727864893915,0.000819,61572.0,61571.0,1.11217295]
[1727864894154,0.000819,61572.0,61571.0,1.10811274]
[1727864896504,0.000819,61572.0,61571.0,1.14075364]
[1727864897455,0.000819,61572.0,61571.0,1.12075364]
[1727864897456,0.02627394,61572.0,61571.0,1.12075364]
[1727864897674,0.02627394,61572.0,61571.0,0.96735364]
[1727864897885,0.02627394,61572.0,61571.0,0.85299418]
[1727864898304,0.02627394,61572.0,61571.0,0.68829973]
[1727864898747,0.02627394,61572.0,61571.0,0.70229973]
[1727864899170,0.02627394,61572.0,61571.0,0.67429973]
[1727864899384,0.02627394,61572.0,61571.0,0.68829973]
[1727864900020,0.02627394,61572.0,61571.0,0.67929973]
[1727864900236,0.02627394,61572.0,61571.0,0.68529973]
[1727864900654,0.02627394,61572.0,61571.0,0.69529973]
[1727864900858,0.02627394,61572.0,61571.0,0.68529973]
[1727864901596,0.02627394,61572.0,61571.0,0.39357662]
[1727864901820,0.35898494,61572.0,61571.0,0.06084516]
[1727864902032,0.19657394,61572.0,61571.0,0.02017859]
[1727864902241,0.19657394,61572.0,61571.0,0.3405604]
[1727864902450,0.19657394,61572.0,61571.0,0.3255604]
[1727864902662,0.19657394,61572.0,61571.0,0.3275604]
[1727864902932,0.19657394,61572.0,61571.0,0.1681464]
[1727864903138,0.171119,61572.0,61571.0,0.3285604]
[1727864903356,0.171119,61572.0,61571.0,0.3275604]
[1727864903582,0.171119,61572.0,61571.0,0.3305604]
[1727864904012,0.33353,61572.0,61571.0,0.01717859]
[1727864904258,0.171119,61572.0,61571.0,0.01717859]
[1727864904672,0.171119,61572.0,61571.0,0.005]
[1727864904889,0.33353,61572.0,61571.0,0.01711897]
[1727864905141,0.33353,61572.0,61571.0,0.005]
[1727864905776,0.33353,61572.0,61571.0,0.01711897]
[1727864905980,0.33353,61572.0,61571.0,0.005]
[1727864906190,0.33353,61572.0,61571.0,0.01711897]
[1727864906412,0.35899003,61572.0,61571.0,0.005]
[1727864906664,0.35899003,61572.0,61571.0,0.01711897]
[1727864906892,0.35899003,61572.0,61571.0,0.005]
[1727864908236,0.19657903,61572.0,61571.0,0.005]
[1727864908490,0.10267903,61572.0,61571.0,0.005]
[1727864908690,0.10267903,61572.0,61571.0,0.164414]
[1727864908898,0.02627903,61572.0,61571.0,0.01442877]
[1727864909340,0.02627903,61572.0,61571.0,0.01606677]
[1727864909609,0.02627903,61572.0,61571.0,0.01406677]
[1727864913221,0.02627903,61572.0,61571.0,0.17648077]
[1727864913458,0.02627903,61572.0,61571.0,0.01406677]
[1727864913714,0.02627903,61572.0,61571.0,0.17648077]
[1727864916311,0.02627903,61572.0,61571.0,0.17748077]
[1727864917630,0.02627903,61572.0,61571.0,0.17948077]
[1727864918273,0.02627903,61572.0,61571.0,0.17848077]
[1727864918707,0.02627903,61572.0,61571.0,0.18148077]
[1727864932858,0.02627903,61572.0,61571.0,0.18138077]
[1727864933084,0.02627903,61572.0,61571.0,0.18058077]
[1727864933316,0.02627903,61572.0,61571.0,0.18048077]
[1727864933759,0.02627903,61572.0,61571.0,0.18038077]
[1727864933986,0.02627903,61572.0,61571.0,0.17958077]
[1727864934660,0.02627903,61572.0,61571.0,0.17938077]
[1727864934879,0.02627903,61572.0,61571.0,0.17858077]
[1727864935529,0.02627903,61572.0,61571.0,0.18072442]
[1727864935740,0.02627903,61572.0,61571.0,0.17992442]
[1727864936377,0.02627903,61572.0,61571.0,0.17972442]
[1727864936584,0.02627903,61572.0,61571.0,0.17902442]
[1727864936790,0.02627903,61572.0,61571.0,0.17892442]
[1727864937227,0.02627903,61572.0,61571.0,0.17882442]
[1727864939341,0.02207903,61572.0,61571.0,0.17882442]
[1727864939571,0.0817,61576.0,61571.0,0.01641042]
[1727864939791,0.0817,61576.0,61574.0,0.162405]
[1727864940008,0.0817,61576.0,61574.0,0.161405]
[1727864940230,0.0817,61576.0,61575.0,0.01119612]
[1727864940738,0.2441,61576.0,61575.0,0.01119612]
[1727864940955,0.0817,61576.0,61575.0,0.01119612]
[1727864941179,0.244101,61576.0,61573.0,0.162408]
[1727864941400,0.244101,61576.0,61575.0,0.01119612]
[1727864941620,0.244101,61576.0,61574.0,0.01119644]
[1727864941840,0.244101,61576.0,61575.0,0.01119612]
[1727864942298,0.0817,61576.0,61574.0,0.162403]
[1727864942511,0.0922,61577.0,61576.0,0.1624]
[1727864942904,0.0922,61577.0,61576.0,0.01119579]
[1727864943371,0.254598,61577.0,61574.0,0.162403]
[1727864943591,0.254598,61577.0,61576.0,0.01119579]
[1727864943806,0.254598,61577.0,61575.0,0.162403]
[1727864943807,0.254598,61577.0,61575.0,0.17359912]
[1727864944045,0.0922,61577.0,61576.0,0.17359579]
[1727864944268,0.0002,61579.0,61576.0,0.17359579]
[1727864944269,0.162396,61578.0,61576.0,0.01119579]
[1727864944912,0.162395,61578.0,61576.0,0.01119579]
[1727864945369,0.162395,61578.0,61575.0,0.162402]
[1727864945768,0.162395,61578.0,61577.0,0.01118799]
[1727864945774,0.0002,61579.0,61578.0,0.162395]
[1727864946242,0.0002,61579.0,61578.0,0.17358267]
[1727864946463,0.02565665,61579.0,61578.0,0.17358267]
[1727864947391,0.02565665,61579.0,61578.0,0.25638267]
[1727864947647,0.02565665,61579.0,61578.0,0.30502119]
[1727864948109,0.02565665,61579.0,61578.0,0.30002119]
[1727864948573,0.02565665,61579.0,61578.0,0.25738267]
[1727864948806,0.02565665,61579.0,61578.0,0.30602119]
[1727864949039,0.02565665,61579.0,61578.0,0.96469726]
[1727864949295,0.02565665,61579.0,61578.0,0.98577797]
[1727864949532,0.02565665,61579.0,61578.0,0.8641355]
[1727864949759,0.02565665,61579.0,61578.0,1.01219689]
[1727864949989,0.02565665,61579.0,61578.0,0.8927255]
[1727864950213,0.02565665,61579.0,61578.0,0.9007255]
[1727864950429,0.02565665,61579.0,61578.0,1.00121904]
[1727864950651,0.02565665,61579.0,61578.0,0.8797255]
[1727864950887,0.02565665,61579.0,61578.0,0.99089001]
[1727864951114,0.02565665,61579.0,61578.0,0.7351493]
[1727864951339,0.02565665,61579.0,61578.0,0.96611451]
[1727864951557,0.02565665,61579.0,61578.0,0.80996122]
[1727864951774,0.02565665,61579.0,61578.0,0.77538225]
[1727864952233,0.02565665,61579.0,61578.0,0.84826443]
[1727864952451,0.02565665,61579.0,61578.0,1.30816347]
[1727864952689,0.02565665,61579.0,61578.0,1.00622264]
[1727864953162,0.02565665,61579.0,61578.0,1.10336495]
[1727864954095,0.02565665,61579.0,61578.0,1.00622264]
[1727864954527,0.02565665,61579.0,61578.0,0.82393328]
[1727864954743,0.02565665,61579.0,61578.0,0.77538225]
[1727864954964,0.02565665,61579.0,61578.0,1.07873845]
[1727864955416,0.02565665,61579.0,61578.0,0.8482063]
[1727864955637,0.02565665,61579.0,61578.0,0.82392307]
[1727864955857,0.02565665,61579.0,61578.0,1.07862589]
[1727864956103,0.02565665,61579.0,61578.0,1.08335547]
[1727864956340,0.02565665,61579.0,61578.0,1.0104865]
[1727864956557,0.02565665,61579.0,61578.0,0.82864286]
[1727864957035,0.02565665,61579.0,61578.0,0.78011183]
[1727864957495,0.02565665,61579.0,61578.0,0.82864508]
[1727864957723,0.02565665,61579.0,61578.0,0.78011183]
[1727864957945,0.02565665,61579.0,61578.0,0.82864508]
[1727864958174,0.02565665,61579.0,61578.0,0.85289938]
[1727864958397,0.0002,61579.0,61578.0,0.85289938]
[1727864958626,0.0002,61579.0,61578.0,0.78011183]
[1727864958872,0.0002,61579.0,61578.0,0.82862913]
[1727864959089,0.02565336,61579.0,61578.0,0.82862913]
[1727864959321,0.02565336,61579.0,61578.0,0.78011183]
[1727864959540,0.02647236,61579.0,61578.0,0.78011183]
[1727864960942,0.02647236,61579.0,61578.0,0.82862913]
[1727864961618,0.02647236,61579.0,61578.0,0.82861849]
[1727864961841,0.02647236,61579.0,61578.0,0.78011183]
[1727864962709,0.02647236,61579.0,61578.0,0.82861849]
[1727864962917,0.001019,61579.0,61578.0,0.78011183]
[1727864963393,0.001019,61579.0,61578.0,0.83061849]
[1727864963635,0.000819,61593.0,61592.0,0.162358]
[1727864963852,0.000819,61593.0,61592.0,0.26147313]
[1727864964074,0.000819,61593.0,61592.0,0.27236309]
[1727864964754,0.000819,61593.0,61592.0,0.27736309]
[1727864965245,0.000819,61593.0,61592.0,0.62740432]
[1727864965466,0.000819,61593.0,61592.0,0.62415754]
[1727864965712,0.000819,61593.0,61592.0,0.26364796]
[1727864965935,0.000819,61593.0,61592.0,0.28136309]
[1727864966149,0.02626864,61593.0,61592.0,0.27636309]
[1727864966623,0.02626864,61593.0,61592.0,0.27236309]
[1727864966849,0.02626864,61593.0,61592.0,0.28636309]
[1727864967312,0.02626864,61593.0,61592.0,0.27236309]
[1727864967528,0.02626864,61593.0,61592.0,0.28836309]
[1727864967761,0.02626864,61593.0,61592.0,0.33113252]
[1727864967976,0.02626864,61593.0,61592.0,0.32413252]
[1727864968191,0.02626864,61593.0,61592.0,0.34113252]
[1727864972826,0.000819,61593.0,61592.0,0.34113252]
[1727864975905,0.000819,61593.0,61592.0,0.19024796]
[1727864976120,0.02626877,61593.0,61592.0,0.34113252]
[1727864980408,0.02626877,61593.0,61592.0,0.02788996]
[1727864980862,0.02626877,61593.0,61592.0,0.19024796]
[1727864981306,0.02626877,61593.0,61592.0,0.02788996]
[1727864982328,0.18862477,61593.0,61592.0,0.02788996]
[1727864982573,0.10956877,61593.0,61592.0,0.02788996]
[1727864983684,0.27192477,61593.0,61592.0,0.02788996]
[1727864983913,0.10956877,61593.0,61592.0,0.02788996]
[1727864984143,0.10956877,61593.0,61592.0,0.19024796]
[1727864984626,0.10956877,61593.0,61592.0,0.02788996]
[1727864985533,0.27192477,61593.0,61592.0,0.02788996]
[1727864986011,0.10956877,61593.0,61592.0,0.02788996]
[1727864986477,0.10956877,61593.0,61592.0,0.19024796]
[1727864986702,0.27192477,61593.0,61592.0,0.02788996]
[1727864986931,0.27192477,61593.0,61592.0,0.01088996]
[1727864987190,0.27192477,61593.0,61592.0,0.01988996]
[1727864987191,0.10956877,61593.0,61592.0,0.01988996]
[1727864987418,0.10956877,61593.0,61592.0,0.01975076]
[1727864988085,0.02626877,61593.0,61592.0,0.18210876]
[1727864988766,0.02626877,61593.0,61592.0,0.33299332]
[1727864989645,0.02626877,61593.0,61592.0,0.28113635]
[1727864992862,0.02626877,61593.0,61592.0,0.01975076]
[1727864993317,0.02626877,61593.0,61592.0,0.18210876]
[1727864993749,0.02626877,61593.0,61592.0,0.01975076]
[1727864994183,0.18862477,61593.0,61592.0,0.01975076]
[1727864997789,0.02626877,61593.0,61592.0,0.11877835]
[1727864998012,0.02626877,61593.0,61592.0,0.28113635]
[1727865009202,0.02626877,61593.0,61592.0,0.18210876]
[1727865010053,0.02626877,61593.0,61592.0,0.01975076]
[1727865010294,0.02626877,61593.0,61592.0,0.18210876]
[1727865010738,0.02626877,61593.0,61592.0,0.01975076]
[1727865011378,0.02626877,61593.0,61592.0,0.18210876]
[1727865011604,0.28666322,61593.0,61592.0,0.01975076]
[1727865011854,0.50701715,61593.0,61592.0,0.01975076]
[1727865012066,0.42356945,61593.0,61592.0,0.01975076]
[1727865012961,0.32786945,61593.0,61592.0,0.01575076]
[1727865013641,0.32786945,61593.0,61592.0,0.01075076]
[1727865016518,0.35332326,61593.0,61592.0,0.01075076]
[1727865019263,0.54935085,61593.0,61592.0,0.01075076]
[1727865019491,0.62645085,61593.0,61592.0,0.01075076]
[1727865020877,0.9644183,61593.0,61592.0,0.01075076]
[1727865021094,1.01314206,61593.0,61592.0,0.01075076]
[1727865021321,0.89333267,61593.0,61592.0,0.01075076]
[1727865022215,0.89333267,61593.0,61580.0,0.24305865]
[1727865022216,0.162387,61581.0,61580.0,0.24305865]
[1727865022443,0.32708145,61581.0,61580.0,0.24305865]
[1727865022673,0.32708145,61581.0,61580.0,0.25388843]
[1727865022896,0.3525403,61581.0,61580.0,0.01082978]
[1727865023128,0.16239,61580.0,61579.0,0.001638]
[1727865023352,0.32708445,61580.0,61579.0,0.001638]
[1727865023791,0.48458615,61580.0,61579.0,0.001638]
[1727865024002,0.65228615,61580.0,61579.0,0.001638]
[1727865024226,0.49478445,61580.0,61579.0,0.001638]
[1727865024486,0.32708445,61580.0,61579.0,0.001638]
[1727865024945,0.32708445,61580.0,61579.0,0.01465668]
[1727865025397,0.32708445,61580.0,61579.0,0.01265668]
[1727865025856,0.33108445,61580.0,61579.0,0.01265668]
[1727865026065,0.46162339,61580.0,61579.0,0.01265668]
[1727865026292,0.45014442,61580.0,61579.0,0.002638]
[1727865026508,0.45014442,61580.0,61579.0,0.001638]
[1727865026509,0.53184442,61580.0,61579.0,0.001638]
[1727865026934,0.53684442,61580.0,61579.0,0.001638]
[1727865030192,0.53884442,61580.0,61579.0,0.001638]
[1727865030418,0.53872234,61580.0,61579.0,0.001638]
[1727865031896,0.63872234,61580.0,61579.0,0.001638]
[1727865032119,0.63672234,61580.0,61579.0,0.001638]
[1727865033140,0.63872234,61580.0,61579.0,0.001638]
[1727865034198,0.82660416,61580.0,61579.0,0.001638]
[1727865034647,0.61326237,61580.0,61579.0,0.001638]
[1727865035295,0.60926237,61580.0,61579.0,0.001638]
[1727865035505,0.61026237,61580.0,61579.0,0.002638]
[1727865036414,0.60526237,61580.0,61579.0,0.002638]
[1727865036616,0.78214419,61580.0,61579.0,0.003638]
[1727865036824,0.78114419,61580.0,61579.0,0.002638]
[1727865037067,0.77414419,61580.0,61579.0,0.002638]
[1727865037306,0.78814419,61580.0,61579.0,0.003638]
[1727865037728,0.81360805,61580.0,61579.0,0.003638]
[1727865039082,0.64872623,61580.0,61579.0,0.003638]
[1727865039614,0.64954523,61580.0,61579.0,0.003638]
[1727865040344,0.20997731,61580.0,61579.0,0.003638]
[1727865040558,0.04528286,61580.0,61579.0,0.01500404]
[1727865040773,0.20767286,61580.0,61579.0,0.01500404]
[1727865041193,0.18867286,61580.0,61579.0,0.01300404]
[1727865041410,0.03728286,61580.0,61579.0,0.01400404]
[1727865041617,0.03128286,61580.0,61579.0,0.01400404]
[1727865041823,0.19367286,61580.0,61579.0,0.01400404]
[1727865042041,0.03128286,61580.0,61579.0,0.01400404]
[1727865042707,0.02628286,61580.0,61579.0,0.01300404]
[1727865042917,0.000819,61580.0,61579.0,0.01300404]
[1727865043135,0.000819,61580.0,61579.0,0.17539704]
[1727865043355,0.000819,61580.0,61579.0,0.25119704]
[1727865043820,0.000819,61580.0,61579.0,0.25319704]
[1727865045196,0.000819,61580.0,61579.0,0.25519704]
[1727865046126,0.02627657,61580.0,61579.0,0.25519704]
[1727865052848,0.000819,61580.0,61579.0,0.25519704]
[1727865056138,0.02627661,61580.0,61579.0,0.25519704]
[1727865060188,0.02627661,61580.0,61579.0,0.01700404]
[1727865060418,0.02627661,61580.0,61579.0,0.17939704]
[1727865060637,0.18866661,61580.0,61579.0,0.01700404]
[1727865060839,0.02589348,61580.0,61579.0,0.17939704]
[1727865061250,0.02589348,61580.0,61579.0,0.01700404]
[1727865061484,0.18828348,61580.0,61579.0,0.01700404]
[1727865062307,0.35297793,61580.0,61579.0,0.01700404]
[1727865062999,0.35297793,61580.0,61579.0,0.005638]
[1727865063000,0.46024861,61580.0,61579.0,0.005638]
[1727865063241,0.41002032,61580.0,61579.0,0.005638]
[1727865063706,0.41002032,61580.0,61579.0,0.003638]
[1727865063921,0.41402032,61580.0,61579.0,0.001638]
[1727865064440,0.41902032,61580.0,61579.0,0.002638]
[1727865064953,0.42102032,61580.0,61579.0,0.002638]
[1727865065453,0.41902032,61580.0,61579.0,0.002638]
[1727865065974,0.42402032,61580.0,61579.0,0.003638]
[1727865066236,0.44948094,61580.0,61579.0,0.003638]
[1727865073224,0.42402032,61580.0,61579.0,0.003638]
[1727865075905,0.34152032,61580.0,61579.0,0.003638]
[1727865076120,0.17913032,61580.0,61579.0,0.003638]
[1727865076344,0.01443587,61580.0,61579.0,0.003638]
[1727865076554,0.17682587,61580.0,61579.0,0.0150942]
[1727865077000,0.17682587,61580.0,61579.0,0.0130942]
[1727865077001,0.16282587,61580.0,61579.0,0.0130942]
[1727865077214,0.32752032,61580.0,61579.0,0.0130942]
[1727865077434,0.32752032,61580.0,61579.0,0.0150942]
[1727865077642,0.35297948,61580.0,61579.0,0.0150942]
[1727865078291,0.35297948,61580.0,61579.0,0.003638]
[1727865078923,0.35289248,61580.0,61579.0,0.003638]
[1727865079143,0.35289248,61580.0,61579.0,0.002638]
[1727865079390,0.35489248,61580.0,61579.0,0.002638]
[1727865079609,0.35489248,61580.0,61579.0,0.01305223]
[1727865080036,0.35789248,61580.0,61579.0,0.01305223]
[1727865080796,0.03080803,61580.0,61579.0,0.08845223]
[1727865081006,0.19319803,61580.0,61579.0,0.08845223]
[1727865081222,0.03080803,61580.0,61579.0,0.08845223]
[1727865081865,0.19319803,61580.0,61579.0,0.08845223]
[1727865082110,0.19119803,61580.0,61579.0,0.08845223]
[1727865082354,0.02980803,61580.0,61579.0,0.08845223]
[1727865082585,0.02980803,61580.0,61579.0,0.25084523]
[1727865082835,0.02680803,61580.0,61579.0,0.25084523]
[1727865083051,0.02880803,61580.0,61579.0,0.25084523]
[1727865083273,0.18919803,61580.0,61579.0,0.08845223]
[1727865083486,0.35289248,61580.0,61579.0,0.01305223]
[1727865083695,0.35289248,61580.0,61579.0,0.01405223]
[1727865083911,0.35289248,61580.0,61579.0,0.002638]
[1727865084327,0.35289248,61580.0,61579.0,0.01605223]
[1727865084570,0.35289248,61580.0,61579.0,0.002638]
[1727865084994,0.35289248,61580.0,61579.0,0.01405223]
[1727865085852,0.35489248,61580.0,61579.0,0.01305223]
[1727865086073,0.35589248,61580.0,61579.0,0.01305223]
[1727865086492,0.32943332,61580.0,61579.0,0.01305223]
[1727865086930,0.33043332,61580.0,61579.0,0.01305223]
[1727865088489,0.33043332,61580.0,61579.0,0.001638]
[1727865088697,0.45870362,61580.0,61579.0,0.001638]
[1727865088913,0.33043332,61580.0,61579.0,0.001638]
[1727865089124,0.35589353,61580.0,61579.0,0.001638]
[1727865094554,0.35589353,61580.0,61579.0,0.0129918]
[1727865094762,0.35589353,61580.0,61579.0,0.001638]
[1727865096594,0.33043332,61580.0,61579.0,0.001638]
[1727865099472,0.35589348,61580.0,61579.0,0.001638]
[1727865106074,0.40464649,61580.0,61579.0,0.001638]
[1727865106291,0.40354683,61580.0,61579.0,0.001638]
[1727865107165,0.33043332,61580.0,61579.0,0.001638]
[1727865108032,0.33043332,61580.0,61579.0,0.077538]
[1727865108239,0.33043332,61580.0,61579.0,0.08898832]
[1727865109290,0.35589343,61580.0,61579.0,0.08898832]
[1727865112470,0.19350343,61580.0,61579.0,0.08898832]
[1727865112692,0.35589343,61580.0,61579.0,0.08898832]
[1727865113098,0.33043332,61580.0,61579.0,0.08898832]
[1727865113716,0.32843332,61580.0,61579.0,0.01308832]
[1727865113916,0.32843332,61580.0,61579.0,0.01408832]
[1727865114146,0.32743332,61580.0,61579.0,0.01408832]
[1727865114355,0.32743332,61580.0,61579.0,0.01508832]
[1727865114973,0.32743332,61580.0,61579.0,0.003638]
[1727865115611,0.32743332,61580.0,61579.0,0.01409729]
[1727865115820,0.32943332,61580.0,61579.0,0.01409729]
[1727865116303,0.35489336,61580.0,61579.0,0.01309729]
[1727865116732,0.35789336,61580.0,61579.0,0.01309729]
[1727865118555,0.51322107,61580.0,61579.0,0.01309729]
[1727865118769,0.58635012,61580.0,61579.0,0.001638]
[1727865119012,0.51322107,61580.0,61579.0,0.001638]
[1727865119446,0.35789336,61580.0,61579.0,0.001638]
[1727865119660,0.43104722,61580.0,61579.0,0.001638]
[1727865120131,0.35789336,61580.0,61579.0,0.001638]
[1727865120864,0.35989336,61580.0,61579.0,0.001638]
[1727865121117,0.35789336,61580.0,61579.0,0.001638]
[1727865121332,0.45539876,61580.0,61579.0,0.001638]
[1727865121545,0.35789336,61580.0,61579.0,0.001638]
[1727865122417,0.43104974,61580.0,61579.0,0.001638]
[1727865122634,0.43104787,61580.0,61579.0,0.001638]
[1727865122848,0.40558783,61580.0,61579.0,0.001638]
[1727865123504,0.33243332,61580.0,61579.0,0.001638]
[1727865123717,0.40558585,61580.0,61579.0,0.001638]
[1727865124619,0.33243332,61580.0,61579.0,0.001638]
[1727865125043,0.40558585,61580.0,61579.0,0.001638]
[1727865125479,0.33243332,61580.0,61579.0,0.001638]
[1727865125942,0.40558585,61580.0,61579.0,0.001638]
[1727865126154,0.43104768,61580.0,61579.0,0.001638]
[1727865127061,0.43104364,61580.0,61579.0,0.001638]
[1727865127488,0.59592546,61580.0,61579.0,0.001638]
[1727865127702,0.43104364,61580.0,61579.0,0.001638]
[1727865127948,0.35789515,61580.0,61579.0,0.001638]
[1727865133089,0.35989515,61580.0,61579.0,0.001638]
[1727865135409,0.35789515,61580.0,61579.0,0.001638]
[1727865138548,0.35989515,61580.0,61579.0,0.001638]
[1727865139666,0.35789515,61580.0,61579.0,0.001638]
[1727865140176,0.4310448,61580.0,61579.0,0.001638]
[1727865140618,0.35789515,61580.0,61579.0,0.001638]
[1727865141095,0.4310448,61580.0,61579.0,0.001638]
[1727865144042,0.40558297,61580.0,61579.0,0.001638]
[1727865144260,0.40558928,61580.0,61579.0,0.001638]
[1727865145656,0.40559281,61580.0,61579.0,0.001638]
[1727865145882,0.33243332,61580.0,61579.0,0.001638]
[1727865148049,0.33043332,61580.0,61579.0,0.001638]
[1727865148221,0.33743332,61580.0,61579.0,0.002638]
[1727865148426,0.33443332,61580.0,61579.0,0.002638]
[1727865148643,0.40759227,61580.0,61579.0,0.001638]
[1727865148873,0.40059227,61580.0,61579.0,0.001638]
[1727865149125,0.40759227,61580.0,61579.0,0.002638]
[1727865149586,0.41759227,61580.0,61579.0,0.003638]
[1727865150068,0.34443332,61580.0,61579.0,0.003638]
[1727865150543,0.18204332,61580.0,61579.0,0.19317273]
[1727865150792,0.01734887,61580.0,61579.0,0.43256573]
[1727865151033,0.01734887,61580.0,61579.0,0.44409852]
[1727865152173,0.01034887,61580.0,61579.0,0.44309852]
[1727865153130,0.00034887,61580.0,61579.0,0.44209852]
[1727865153362,0.00034887,61580.0,61579.0,0.44409852]
[1727865154916,0.00134887,61580.0,61579.0,0.45109852]
[1727865155380,0.00084087,61580.0,61579.0,0.45109852]
[1727865155602,0.00084087,61580.0,61579.0,0.46309852]
[1727865157481,0.02629471,61580.0,61579.0,0.46309852]
[1727865157699,0.24387765,61593.0,61592.0,0.336658]
[1727865157914,0.24387765,61593.0,61592.0,0.43579273]
[1727865158135,0.000819,61593.0,61592.0,0.4471233]
[1727865159032,0.001819,61593.0,61592.0,0.4471233]
[1727865159275,0.001819,61593.0,61592.0,0.69018195]
[1727865159521,0.000819,61595.0,61594.0,0.162353]
[1727865159741,0.0002,61599.0,61598.0,0.43467673]
[1727865160206,0.0002,61599.0,61598.0,0.44969956]
[1727865161134,0.0012,61599.0,61598.0,0.45869956]
[1727865161572,0.02664662,61599.0,61598.0,0.51039608]
[1727865161799,0.02664662,61599.0,61598.0,0.61039608]
[1727865162033,0.24305865,61611.0,61606.0,0.31315225]
[1727865162273,0.24305865,61611.0,61606.0,0.50932457]
[1727865162503,0.002,61612.0,61606.0,0.50932457]
[1727865164994,0.002,61612.0,61606.0,0.52032457]
[1727865165505,0.002,61612.0,61606.0,0.76338322]
[1727865165808,0.002,61612.0,61611.0,0.31313925]
[1727865166007,0.002,61612.0,61611.0,0.49563925]
[1727865166228,0.002,61612.0,61611.0,0.67523746]
[1727865167141,0.002,61612.0,61611.0,0.67923746]
[1727865168259,0.002,61612.0,61611.0,0.68523746]
[1727865169907,0.002819,61612.0,61611.0,0.68523746]
[1727865171441,0.002819,61612.0,61611.0,0.67923746]
[1727865171930,0.002819,61612.0,61611.0,0.68923746]
[1727865172436,0.002819,61612.0,61611.0,0.67923746]
[1727865172674,0.002819,61612.0,61611.0,0.69023746]
[1727865173167,0.000818,61617.0,61616.0,0.49232625]
[1727865173617,0.000818,61617.0,61616.0,0.77161374]
[1727865174079,0.000818,61622.0,61617.0,0.324584]
[1727865174305,0.0159973,61631.0,61620.0,0.324568]
[1727865174524,0.24305865,61636.0,61631.0,0.162256]
[1727865174747,0.24305865,61636.0,61631.0,0.50809507]
[1727865174967,0.0001,61637.0,61631.0,0.51933787]
[1727865175630,0.0001,61637.0,61636.0,0.48027325]
[1727865175862,0.0001,61637.0,61636.0,0.6449677]
[1727865176093,0.0001,61637.0,61636.0,0.65925999]
[1727865176463,0.0002,61639.0,61638.0,0.162237]
[1727865176681,0.0002,61639.0,61638.0,0.41732309]
[1727865177100,0.0002,61639.0,61638.0,0.25508609]
[1727865177515,0.0002,61639.0,61638.0,0.3087883]
[1727865177749,0.0002,61639.0,61638.0,0.4650253]
[1727865177961,0.0002,61639.0,61638.0,0.41732309]
[1727865178173,0.0002,61639.0,61638.0,0.565128]
[1727865178593,0.0002,61639.0,61638.0,0.575128]
[1727865178801,0.0002,61639.0,61638.0,0.675128]
[1727865179240,0.0002,61639.0,61638.0,0.686128]
[1727865180070,0.160131,61656.0,61642.0,0.162225]
[1727865180310,0.160131,61656.0,61655.0,0.15083125]
[1727865180735,0.02542688,61656.0,61655.0,0.15083125]
[1727865181174,0.18761688,61656.0,61655.0,0.15083125]
[1727865181400,0.02542688,61656.0,61655.0,0.15083125]
[1727865181614,0.02542688,61656.0,61655.0,0.083]
[1727865181615,0.02624588,61656.0,61655.0,0.083]
[1727865181836,0.02624588,61656.0,61655.0,0.24876196]
[1727865182305,1.314332,61666.0,61661.0,0.1]
[1727865182306,0.99,61666.0,61661.0,0.1]
[1727865182573,0.99,61666.0,61665.0,0.15083125]
[1727865182821,0.99,61666.0,61665.0,0.22773125]
[1727865183050,0.99,61666.0,61665.0,0.24163834]
[1727865184202,0.99,61666.0,61665.0,0.24663834]
[1727865184815,1.0713,61666.0,61665.0,0.24663834]
[1727865185024,1.0713,61666.0,61665.0,0.25263834]
[1727865185223,1.0713,61666.0,61665.0,0.011]
[1727865185224,1.233463,61666.0,61665.0,0.011]
[1727865186486,1.233463,61666.0,61665.0,0.006]
[1727865187058,1.233463,61666.0,61665.0,0.007]
[1727865187262,1.233463,61666.0,61665.0,0.006]
[1727865187487,1.0713,61666.0,61656.0,0.15083125]
[1727865187714,0.162206,61650.0,61649.0,0.3938899]
[1727865188359,0.162206,61650.0,61649.0,0.15083125]
[1727865189531,0.162206,61650.0,61649.0,0.15783125]
[1727865190550,0.324407,61651.0,61649.0,0.15783125]
[1727865190551,0.486563,61657.0,61656.0,0.001]
[1727865190792,0.486563,61657.0,61656.0,0.15083125]
[1727865190793,0.324376,61657.0,61656.0,0.15083125]
[1727865191060,0.486563,61657.0,61656.0,0.15083125]
[1727865191952,0.02542615,61658.0,61656.0,0.15083125]
[1727865191953,0.18761115,61658.0,61656.0,0.15083125]
[1727865192159,0.02542615,61658.0,61656.0,0.15083125]
[1727865192371,0.02542615,61658.0,61657.0,0.05023469]
[1727865192576,0.02542615,61658.0,61657.0,0.13223469]
[1727865194358,0.02642615,61658.0,61657.0,0.13223469]
[1727865194542,0.02542615,61658.0,61657.0,0.13223469]
[1727865194713,0.02542615,61658.0,61657.0,0.14423469]
[1727865194934,0.02542615,61658.0,61657.0,0.14099121]
[1727865195186,0.02542615,61658.0,61657.0,0.094]
[1727865195385,0.02542615,61658.0,61657.0,0.012]
[1727865195599,0.18761015,61658.0,61657.0,0.006]
[1727865195734,0.16219,61656.0,61655.0,0.001636]
[1727865196122,0.02542615,61658.0,61655.0,0.001636]
[1727865196326,0.18761115,61658.0,61655.0,0.001636]
[1727865196527,0.162188,61657.0,61655.0,0.001636]
[1727865196735,0.02542615,61658.0,61655.0,0.001636]
[1727865196939,0.18761315,61658.0,61655.0,0.001636]
[1727865197115,0.162188,61657.0,61655.0,0.001636]
[1727865198702,0.02542615,61658.0,61655.0,0.001636]
[1727865198912,0.16219,61656.0,61655.0,0.001636]
[1727865201025,0.16219,61656.0,61655.0,0.002636]
[1727865201498,0.16719,61656.0,61655.0,0.003636]
[1727865201709,0.16219,61656.0,61655.0,0.001636]
[1727865202806,0.18761715,61656.0,61655.0,0.001636]
[1727865203251,0.18671715,61656.0,61655.0,0.001636]
[1727865203691,0.18661715,61656.0,61655.0,0.001636]
[1727865204099,0.18581715,61656.0,61655.0,0.001636]
[1727865204554,0.02542715,61656.0,61655.0,0.31465925]
[1727865204773,0.000818,61661.0,61655.0,0.31465925]